fUSD/lending_fUSD_20240918
["ID","MTS","AMOUNT","RATE_DAILY","PERIOD"]
[338465127,1726663846881,-387.522692,0.00014463,2]
[338465128,1726663846891,-500.0,0.00014463,2]
[338465129,1726663846901,-500.0,0.00014472,2]
[338465130,1726663846910,-151.0,0.00014472,2]
[338465131,1726663846919,-151.0,0.00014472,2]
[338465132,1726663846929,-500.0,0.00014481,2]
[338465133,1726663846938,-500.0,0.0001449,2]
[338465134,1726663846947,-158.713714,0.00014494,2]
[338465135,1726663846957,-300.0,0.00014496,2]
[338465136,1726663846966,-300.0,0.00014496,2]
[338465137,1726663846975,-300.0,0.00014496,2]
[338465138,1726663846984,-300.0,0.00014496,2]
[338465139,1726663846993,-300.0,0.00014496,2]
[338465140,1726663847003,-300.0,0.00014496,2]
[338465141,1726663847013,-300.0,0.00014496,2]
[338465142,1726663847022,-300.0,0.00014496,2]
[338465143,1726663847032,-300.0,0.00014496,2]
[338465144,1726663847041,-300.0,0.00014496,2]
[338465145,1726663847051,-300.0,0.00014496,2]
[338465146,1726663847061,-300.0,0.00014496,2]
[338465147,1726663847071,-300.0,0.00014496,2]
[338465148,1726663847081,-300.0,0.00014496,2]
[338465149,1726663847091,-300.0,0.00014496,2]
[338465150,1726663847100,-300.0,0.00014496,2]
[338465151,1726663847110,-300.0,0.00014496,2]
[338465152,1726663847120,-300.0,0.00014496,2]
[338465153,1726663847129,-300.0,0.00014496,2]
[338465154,1726663847139,-597.0311691,0.00014496,2]
[338465155,1726663847148,-108763.53145708,0.00014497,2]
[338465156,1726663847158,-151.0,0.00014497,2]
[338465157,1726663847170,-151.0,0.00014497,2]
[338465158,1726663847179,-151.0,0.00014497,2]
[338465159,1726663847189,-151.0,0.00014497,2]
[338465160,1726663847198,-151.0,0.00014497,2]
[338465161,1726663847207,-166.1,0.00014497,2]
[338465162,1726663847218,-166.1,0.00014497,2]
[338465163,1726663847227,-151.0,0.00014497,2]
[338465164,1726663847237,-151.0,0.00014497,2]
[338465165,1726663847249,-151.0,0.00014497,2]
[338465166,1726663847259,-151.0,0.00014497,2]
[338465167,1726663847269,-242.93216,0.00014497,2]
[338465168,1726663847278,-242.93216,0.00014497,2]
[338465169,1726663847287,-423.170466,0.00014497,2]
[338465170,1726663847296,-331.528904,0.00014497,2]
[338465171,1726663847305,-423.170466,0.00014497,2]
[338465172,1726663847314,-331.528904,0.00014497,2]
[338465173,1726663847323,-151.0,0.00014497,2]
[338465174,1726663847332,-151.0,0.00014497,2]
[338465175,1726663847341,-151.0,0.00014497,2]
[338465176,1726663847350,-457.015421,0.00014497,2]
[338465177,1726663847360,-457.015421,0.00014497,2]
[338465178,1726663847369,-253.52335,0.00014497,2]
[338465179,1726663847378,-253.52335,0.00014497,2]
[338465180,1726663847387,-151.0,0.00014497,2]
[338465181,1726663847396,-224.556208,0.00014497,2]
[338465182,1726663847406,-201.415864,0.00014497,2]
[338465183,1726663847415,-201.415864,0.00014497,2]
[338465184,1726663847424,-151.0,0.00014497,2]
[338465185,1726663847434,-151.0,0.00014497,2]
[338465186,1726663847443,-151.0,0.00014497,2]
[338465187,1726663847452,-1000.0,0.00014497,2]
[338465188,1726663847461,-1000.0,0.00014497,2]
[338465189,1726663847471,-151.0,0.00014497,2]
[338465190,1726663847480,-151.0,0.00014497,2]
[338465191,1726663847490,-151.0,0.00014497,2]
[338465192,1726663847500,-466.829988,0.00014497,2]
[338465193,1726663847509,-466.829988,0.00014497,2]
[338465194,1726663847518,-655.626208,0.00014497,2]
[338465195,1726663847527,-562.234967,0.00014497,2]
[338465196,1726663847537,-655.626208,0.00014497,2]
[338465197,1726663847547,-562.234967,0.00014497,2]
[338465198,1726663847556,-151.0,0.00014497,2]
[338465199,1726663847566,-1314.614717,0.00014497,2]
[338465200,1726663847576,-1314.614717,0.00014497,2]
[338465201,1726663847585,-151.957399,0.00014497,2]
[338465202,1726663847595,-642.701612,0.00014497,2]
[338465203,1726663847604,-642.701612,0.00014497,2]
[338465204,1726663847613,-374.246629,0.00014497,2]
[338465205,1726663847622,-374.246629,0.00014497,2]
[338465206,1726663847631,-1043.805631,0.00014497,2]
[338465207,1726663847640,-1043.805631,0.00014497,2]
[338465208,1726663847649,-360.196763,0.00014497,2]
[338465209,1726663847658,-500.0,0.00014498,2]
[338465210,1726663847668,-1770.0,0.000145,2]
[338465211,1726663847678,-651.0,0.000145,2]
[338465212,1726663847687,-500.0,0.00014507,2]
[338465213,1726663847697,-202.0,0.0001451,2]
[338465214,1726663847706,-500.0,0.00014516,2]
[338465215,1726663847715,-575.57,0.00014521,2]
[338465216,1726663847725,-1000.0,0.00014521,2]
[338465217,1726663847734,-1000.0,0.00014521,2]
[338465218,1726663847743,-552.460941,0.00014521,2]
[338465219,1726663847753,-500.0,0.00014521,2]
[338465220,1726663847763,-500.0,0.00014525,2]
[338465221,1726663847772,-500.0,0.0001453,2]
[338465222,1726663847782,-500.0,0.00014534,2]
[338465223,1726663847791,-500.0,0.00014538,2]
[338465224,1726663847800,-500.0,0.00014542,2]
[338465225,1726663847809,-11776.61857469,0.00014543,2]
[338465226,1726663847818,-158.713714,0.00014547,2]
[338465227,1726663847828,-500.0,0.00014547,2]
[338465228,1726663847837,-166.73121049,0.00014548,2]
[338465229,1726663847846,-202.0,0.0001455,2]
[338465230,1726663847855,-500.0,0.00014551,2]
[338465231,1726663847864,-500.0,0.00014556,2]
[338465232,1726663847873,-500.0,0.0001456,2]
[338465233,1726663847883,-500.0,0.00014565,2]
[338465234,1726663847892,-500.0,0.00014569,2]
[338465235,1726663847901,-150.0,0.00014573,2]
[338465236,1726663847910,-500.0,0.00014574,2]
[338465237,1726663847919,-500.0,0.00014578,2]
[338465238,1726663847928,-165.45726329,0.0001458,2]
[338465239,1726663847938,-500.0,0.00014582,2]
[338465240,1726663847948,-500.0,0.00014586,2]
[338465241,1726663847958,-158.713714,0.0001459,3]
[338465242,1726663847967,-158.713714,0.0001459,3]
[338465243,1726663847976,-158.713714,0.0001459,3]
[338465244,1726663847985,-202.0,0.0001459,2]
[338465245,1726663847994,-210.0,0.0001459,2]
[338465246,1726663848004,-1899.78735655,0.0001459,2]
[338465247,1726663848013,-205.0,0.0001459,2]
[338465248,1726663848022,-204.0,0.0001459,2]
[338465249,1726663848032,-500.0,0.00014591,2]
[338465250,1726663848041,-1010.64,0.00014595,2]
[338465251,1726663848050,-500.0,0.00014595,2]
[338465252,1726663848059,-300.0,0.00014598,2]
[338465253,1726663848068,-300.0,0.00014598,2]
[338465254,1726663848078,-300.0,0.00014598,2]
[338465255,1726663848087,-300.0,0.00014598,2]
[338465256,1726663848096,-300.0,0.00014598,2]
[338465257,1726663848105,-300.0,0.00014598,2]
[338465258,1726663848115,-300.0,0.00014598,2]
[338465259,1726663848125,-300.0,0.00014598,2]
[338465260,1726663848134,-300.0,0.00014598,2]
[338465261,1726663848143,-300.0,0.00014598,2]
[338465262,1726663848152,-300.0,0.00014598,2]
[338465263,1726663848162,-300.0,0.00014598,2]
[338465264,1726663848175,-300.0,0.00014598,2]
[338465265,1726663848185,-300.0,0.00014598,2]
[338465266,1726663848195,-300.0,0.00014598,2]
[338465267,1726663848204,-300.0,0.00014598,2]
[338465268,1726663848213,-300.0,0.00014598,2]
[338465269,1726663848223,-300.0,0.00014598,2]
[338465270,1726663848232,-300.0,0.00014598,2]
[338465271,1726663848242,-35267.67063483,0.00014599,2]
[338465272,1726663848252,-150.0,0.00014599,2]
[338465273,1726663848261,-151.0,0.00014599,2]
[338465274,1726663848271,-151.0,0.00014599,2]
[338465275,1726663848280,-151.0,0.00014599,2]
[338465276,1726663848290,-387.522692,0.00014599,2]
[338465277,1726663848299,-151.0,0.00014599,2]
[338465278,1726663848308,-387.522692,0.00014599,2]
[338465279,1726663848317,-151.0,0.00014599,2]
[338465280,1726663848327,-1326.33,0.00014599,2]
[338465281,1726663848337,-1326.33,0.00014599,2]
[338465282,1726663848346,-1326.33,0.00014599,2]
[338465283,1726663848356,-1326.33,0.00014599,2]
[338465284,1726663848365,-1326.33,0.00014599,2]
[338465285,1726663848375,-1326.33,0.00014599,2]
[338465286,1726663848385,-1326.33,0.00014599,2]
[338465287,1726663848394,-1326.33,0.00014599,2]
[338465288,1726663848403,-1326.33,0.00014599,2]
[338465289,1726663848413,-1326.54258991,0.00014599,2]
[338465290,1726663848422,-300.0,0.00014599,2]
[338465291,1726663848432,-300.0,0.00014599,2]
[338465292,1726663848443,-300.0,0.00014599,2]
[338465293,1726663848452,-300.0,0.00014599,2]
[338465294,1726663848462,-300.0,0.00014599,2]
[338465295,1726663848471,-300.0,0.00014599,2]
[338465296,1726663848481,-300.0,0.00014599,2]
[338465297,1726663848490,-300.0,0.00014599,2]
[338465298,1726663848500,-300.0,0.00014599,2]
[338465299,1726663848510,-300.0,0.00014599,2]
[338465300,1726663848519,-300.0,0.00014599,2]
[338465301,1726663848529,-300.0,0.00014599,2]
[338465302,1726663848538,-300.0,0.00014599,2]
[338465303,1726663848548,-300.0,0.00014599,2]
[338465304,1726663848558,-300.0,0.00014599,2]
[338465305,1726663848568,-300.0,0.00014599,2]
[338465306,1726663848578,-300.0,0.00014599,2]
[338465307,1726663848588,-500.0,0.000146,2]
[338465308,1726663848598,-1319978.50281592,0.000146,2]
[338465309,1726663848633,-301.84554532,0.000146,2]
[338465310,1726663848645,-693.46680923,0.000146,2]
[338465311,1726663851411,-151.0,0.000135,2]
[338465312,1726663851421,-360.196763,0.000135,2]
[338465313,1726663851431,-151.0,0.00013899,2]
[338465314,1726663851441,-360.196763,0.00013899,2]
[338465315,1726663851451,-151.0,0.000139,2]
[338465316,1726663851460,-360.196763,0.000139,2]
[338465317,1726663851470,-151.0,0.00014497,2]
[338465318,1726663851480,-58382.40971101,0.000146,2]
[338465319,1726663853087,-151.0,0.000135,2]
[338465320,1726663853096,-430.86364178,0.000135,2]
[338465321,1726663853108,-173.53537922,0.000135,2]
[338465322,1726663853118,-151.0,0.00013899,2]
[338465323,1726663853127,-89.75112606,0.00013899,2]
[338465324,1726663853138,-514.64789494,0.00013899,2]
[338465325,1726663853147,-151.0,0.000139,2]
[338465326,1726663853155,-604.399021,0.000139,2]
[338465327,1726663853165,-360.196763,0.00014497,2]
[338465328,1726663853178,-151.0,0.00014497,2]
[338465329,1726663853188,-301.25411436,0.00014497,2]
[338465330,1726663853199,-303.14490664,0.00014497,2]
[338465331,1726663853209,-418.48130769,0.000146,2]
[338465332,1726664276201,155.97,0.00011537,2]
[338465333,1726664495593,74.03818522,6.911e-05,7]
[338465334,1726664495618,11315.11195138,6.911e-05,7]
[338465335,1726664557523,7305.00799061,6.911e-05,7]
[338465336,1726664618493,1490.92796804,6.911e-05,7]
[338465337,1726664775690,155.68,0.00011191,2]
[338465338,1726664918332,-1308.94001428,0.00012835,2]
[338465353,1726665031830,-20.84286072,0.00012835,2]
[338465354,1726665031839,-179.99297769,0.000129,2]
[338465355,1726665031849,-229.03841349,0.0001299,2]
[338465356,1726665031860,-13416.31778349,0.0001299,2]
[338465357,1726665031870,-1495.98,0.00012999,2]
[338465358,1726665031879,-317.4,0.00013,2]
[338465359,1726665031888,-561.85,0.00013,2]
[338465360,1726665031898,-1006.02,0.00013,2]
[338465361,1726665031907,-250.0,0.0001306,2]
[338465362,1726665031917,-171.45,0.00013071,2]
[338465363,1726665031926,-200.0,0.00013078,2]
[338465364,1726665031936,-547.12,0.00013083,2]
[338465365,1726665031945,-619.94,0.00013085,2]
[338465366,1726665031955,-150.23,0.00013089,2]
[338465367,1726665031968,-250.0,0.00013095,2]
[338465368,1726665031978,-150.0,0.00013106,2]
[338465369,1726665031988,-1231.89,0.00013106,2]
[338465370,1726665031997,-5996.7,0.00013106,2]
[338465371,1726665032007,-250.0,0.00013123,2]
[338465372,1726665032016,-150.0,0.00013123,2]
[338465373,1726665032025,-167.62,0.00013142,2]
[338465374,1726665032035,-500.93,0.00013157,2]
[338465375,1726665032044,-564.56,0.00013167,2]
[338465376,1726665032054,-999.99,0.00013167,2]
[338465377,1726665032063,-949.85,0.00013171,2]
[338465378,1726665032072,-429.01,0.00013186,2]
[338465379,1726665032082,-8258.96,0.00013191,2]
[338465380,1726665032091,-150.0,0.00013233,2]
[338465382,1726665032101,-1495.98,0.00013273,2]
[338465383,1726665032110,-171.04,0.00013344,2]
[338465385,1726665032120,-155.0,0.0001343,2]
[338465387,1726665032130,-150.0,0.00013488,2]
[338465389,1726665032139,-150.0,0.00013488,2]
[338465391,1726665032149,-150.0,0.00013488,2]
[338465393,1726665032158,-150.0,0.00013488,2]
[338465394,1726665032168,-151.0,0.00013491,2]
[338465396,1726665032177,-1495.98,0.00013547,2]
[338465397,1726665032187,-200.0,0.00013699,2]
[338465399,1726665032198,-167.11,0.00013699,2]
[338465401,1726665032208,-2751.0,0.00013699,2]
[338465403,1726665032220,-150.0,0.00013699,2]
[338465406,1726665032229,-4167.66,0.00013699,2]
[338465409,1726665032239,-296.27547686,0.000137,2]
[338465412,1726665032248,-151.0,0.00013789,2]
[338465415,1726665032257,-1495.98,0.00013821,2]
[338465416,1726665032267,-155.68,0.00013879,2]
[338465417,1726665032276,-151.0,0.000139,2]
[338465418,1726665032286,-600.0,0.000139,5]
[338465419,1726665032295,-526.48019284,0.00014,2]
[338465420,1726665032304,-1300.0,0.00014,5]
[338465421,1726665032645,-150.0,0.00014059,2]
[338465422,1726665032655,-152.0,0.00014084,3]
[338465423,1726665032665,-1495.98,0.00014095,2]
[338465424,1726665032675,-2000.0,0.000141,5]
[338465425,1726665032685,-631.490696,0.00014105,2]
[338465426,1726665032695,-159.20163899,0.00014111,2]
[338465427,1726665032705,-2700.0,0.000142,5]
[338465428,1726665032715,-497.214847,0.00014247,2]
[338465429,1726665032724,-500.0,0.0001427,2]
[338465430,1726665032734,-500.0,0.00014278,2]
[338465431,1726665032743,-500.0,0.00014287,2]
[338465432,1726665032753,-500.0,0.00014296,2]
[338465433,1726665032763,-155.0,0.000143,2]
[338465434,1726665032772,-3400.0,0.000143,5]
[338465435,1726665032781,-500.0,0.00014305,2]
[338465436,1726665032790,-500.0,0.00014314,2]
[338465437,1726665032800,-500.0,0.00014322,2]
[338465438,1726665032809,-500.0,0.00014331,2]
[338465439,1726665032819,-500.0,0.0001434,2]
[338465440,1726665032828,-500.0,0.00014349,2]
[338465441,1726665032837,-150.0,0.00014352,2]
[338465442,1726665032846,-500.0,0.00014358,2]
[338465443,1726665032855,-500.0,0.00014366,2]
[338465444,1726665032864,-1495.98,0.00014369,2]
[338465445,1726665032874,-500.0,0.00014375,2]
[338465446,1726665032883,-500.0,0.00014384,2]
[338465447,1726665032892,-500.0,0.00014393,2]
[338465448,1726665032901,-600.0,0.000144,5]
[338465449,1726665032911,-500.0,0.00014402,2]
[338465450,1726665032920,-150.0,0.00014404,2]
[338465451,1726665032930,-500.0,0.0001441,2]
[338465452,1726665032939,-11163.46,0.00014414,2]
[338465453,1726665032949,-164.328,0.00014417,2]
[338465454,1726665032959,-500.0,0.00014419,2]
[338465455,1726665032969,-150.0,0.0001442,2]
[338465456,1726665032978,-150.0,0.00014427,2]
[338465457,1726665032988,-500.0,0.00014428,2]
[338465458,1726665032997,-1006.02,0.0001445,2]
[338465459,1726665033007,-152.0,0.00014451,4]
[338465460,1726665033016,-500.0,0.00014483,2]
[338465461,1726665033026,-2000.0,0.00014483,2]
[338465462,1726665033036,-500.0,0.00014483,2]
[338465463,1726665033046,-500.0,0.00014483,2]
[338465464,1726665033055,-200.0,0.00014483,2]
[338465465,1726665033064,-151.0,0.00014497,2]
[338465466,1726665033074,-2302.7651,0.000145,2]
[338465467,1726665033083,-2867.41142029,0.000145,2]
[338465468,1726665033093,-158.80663967,0.000145,2]
[338465469,1726665033103,-600.0,0.000145,5]
[338465470,1726665033112,-1000.0,0.00014521,2]
[338465471,1726665033122,-150.0,0.00014539,2]
[338465472,1726665033133,-150.0,0.00014541,2]
[338465473,1726665033142,-11776.61857469,0.00014543,2]
[338465474,1726665033152,-2867.41142028,0.00014544,2]
[338465475,1726665033161,-158.8066396,0.00014557,2]
[338465476,1726665033171,-400.35058676,0.0001457,2]
[338465477,1726665033182,-500.0,0.00014573,2]
[338465478,1726665033191,-501.19201271,0.00014573,2]
[338465479,1726665033202,-500.0,0.00014574,2]
[338465480,1726665033213,-150.0,0.00014577,2]
[338465481,1726665033223,-500.0,0.00014582,2]
[338465482,1726665033233,-2867.41142028,0.00014589,2]
[338465483,1726665033242,-23447.1052166,0.0001459,2]
[338465484,1726665033252,-151.47,0.0001459,2]
[338465485,1726665033262,-500.0,0.00014591,2]
[338465486,1726665033272,-311.65418896,0.00014599,2]
[338465487,1726665033282,-11157.19,0.000146,2]
[338465488,1726665033291,-267869.91154941,0.000146,2]
[338465489,1726665033304,-9852.85409,0.000146,2]
[338465490,1726665033316,-621.77146932,0.000146,2]
[338465491,1726665033326,-1099.97243844,0.000146,2]
[338465492,1726665033353,-18315.59842204,0.000146,2]
[338465493,1726665033364,-22919.1115197,0.000146,2]
[338465494,1726665033375,-378.25609224,0.000146,2]
[338465495,1726665033387,-270.54903608,0.000146,2]
[338465496,1726665033401,-2680.38836122,0.000146,2]
[338465497,1726665033412,-487.04390785,0.000146,2]
[338465498,1726665033557,-397.95754666,0.000146,2]
[338465499,1726665033569,-431.15035491,0.000146,2]
[338465501,1726665037839,-880.0,0.00013099,2]
[338465502,1726665037849,-6345.22519846,0.00014454,2]
[338465503,1726665037861,-5431.39337623,0.00014454,2]
[338465504,1726665037870,-500.0,0.00014573,2]
[338465505,1726665037880,-96507.41939548,0.000146,2]
[338465506,1726665037890,-200.1,0.000146,2]
[338465507,1726665037899,-200.1,0.000146,2]
[338465508,1726665037909,-200.1,0.000146,2]
[338465509,1726665037918,-158.713714,0.000146,2]
[338465510,1726665037928,-201.415864,0.000146,2]
[338465511,1726665037937,-201.415864,0.000146,2]
[338465512,1726665037947,-151.0,0.000146,2]
[338465513,1726665037957,-250.44281,0.000146,2]
[338465514,1726665037968,-151.0,0.000146,2]
[338465515,1726665037978,-1000.0,0.000146,2]
[338465516,1726665037995,-1000.0,0.000146,2]
[338465517,1726665038005,-1000.0,0.000146,2]
[338465518,1726665038015,-1000.0,0.000146,2]
[338465519,1726665038025,-1000.0,0.000146,2]
[338465520,1726665038035,-1000.0,0.000146,2]
[338465521,1726665038044,-541.73472542,0.000146,2]
[338465522,1726665038056,-458.26527458,0.000146,2]
[338465523,1726665038065,-1000.0,0.000146,2]
[338465524,1726665038075,-1000.0,0.000146,2]
[338465526,1726665038084,-1000.0,0.000146,2]
[338465528,1726665038093,-1000.0,0.000146,2]
[338465530,1726665038102,-567.52573499,0.000146,2]
[338465532,1726665038118,-432.47426501,0.000146,2]
[338465534,1726665038127,-1000.0,0.000146,2]
[338465536,1726665038137,-1000.0,0.000146,2]
[338465538,1726665038146,-1000.0,0.000146,2]
[338465540,1726665038156,-1000.0,0.000146,2]
[338465542,1726665038165,-1000.0,0.000146,2]
[338465544,1726665038175,-1000.0,0.000146,2]
[338465546,1726665038184,-1000.0,0.000146,2]
[338465548,1726665038194,-1000.0,0.000146,2]
[338465550,1726665038203,-1000.0,0.000146,2]
[338465552,1726665038213,-1000.0,0.000146,2]
[338465554,1726665038228,-1000.0,0.000146,2]
[338465556,1726665038237,-1000.0,0.000146,2]
[338465559,1726665038246,-1000.0,0.000146,2]
[338465561,1726665038256,-1039.03085724,0.000146,2]
[338465563,1726665038265,-618.0,0.000146,2]
[338465564,1726665038275,-500.0,0.000146,2]
[338465565,1726665038284,-600.0,0.000146,5]
[338465566,1726665038293,-167.11,0.00014612,2]
[338465567,1726665038302,-158.8066396,0.00014614,2]
[338465568,1726665038311,-2867.41142028,0.00014633,2]
[338465569,1726665038321,-1495.98,0.00014643,2]
[338465570,1726665038331,-191.8705803,0.00014658,2]
[338465571,1726665038340,-6030.79993789,0.00014668,2]
[338465572,1726665038352,-2220.78177566,0.00014668,2]
[338465573,1726665038363,-376.71416201,0.00014668,2]
[338465574,1726665038386,-536.19908376,0.00014668,2]
[338465580,1726665038655,-1599.21665465,0.00014668,2]
[338465581,1726665038667,-1059.64929263,0.00014668,2]
[338465582,1726665038676,-400.0,0.0001467,2]
[338465583,1726665038686,-158.8066396,0.00014671,2]
[338465584,1726665038695,-157.43406777,0.00014672,3]
[338465585,1726665038706,-242.56593322,0.00014672,3]
[338465586,1726665038716,-600.0,0.00014676,2]
[338465587,1726665038725,-120.46462816,0.00014676,2]
[338465588,1726665038736,-479.53537184,0.00014676,2]
[338465589,1726665038745,-65.08224712,0.00014676,2]
[338465590,1726665038757,-410.82807031,0.00014676,2]
[338465591,1726665038819,-124.08968257,0.00014676,2]
[338465592,1726665038828,-681.28492746,0.00014678,2]
[338465593,1726665038847,-445.42957939,0.00014678,2]
[338465647,1726665040852,-730.55933782,0.00014678,2]
[338465649,1726665040864,-1010.13757561,0.00014678,2]
[338465651,1726665040874,-166.73121049,0.00014685,2]
[338465653,1726665040884,-1096.42113924,0.00014689,2]
[338465655,1726665040893,-520.03371215,0.0001469,2]
[338465657,1726665040905,-1333.31807868,0.0001469,2]
[338465659,1726665040916,-1131.59228596,0.0001469,2]
[338465661,1726665040928,-286.17129498,0.0001469,2]
[338465663,1726665040939,-495.55389865,0.0001469,2]
[338465665,1726665040950,-722.9693,0.0001469,2]
[338465668,1726665040974,-674.47609604,0.0001469,2]
[338465670,1726665040985,-375.8912354,0.0001469,2]
[338465672,1726665040996,-1087.46169813,0.0001469,2]
[338465674,1726665041008,-500.0,0.0001469,2]
[338465676,1726665041019,-650.0,0.0001469,2]
[338465678,1726665041031,-3537.73874138,0.0001469,2]
[338465680,1726665041042,-508.15456523,0.0001469,2]
[338465682,1726665041052,-751.80629477,0.000147,2]
[338465684,1726665041063,-248.19370523,0.000147,2]
[338465686,1726665041072,-367.4220884,0.000147,2]
[338465689,1726665041100,-632.5779116,0.000147,2]
[338465690,1726665041109,-1000.0,0.000147,2]
[338465691,1726665041118,-5530.75339284,0.000147,5]
[338465692,1726665041130,-1368.05667035,0.000147,5]
[338465693,1726665041149,-9220.83008306,0.000147,5]
[338465694,1726665041160,-1000.0,0.000147,2]
[338465695,1726665041170,-1000.0,0.000147,2]
[338465696,1726665041179,-1000.0,0.000147,2]
[338465697,1726665041188,-1000.0,0.000147,2]
[338465698,1726665041199,-1000.0,0.000147,2]
[338465699,1726665041208,-1000.0,0.000147,2]
[338465700,1726665041222,-1000.0,0.000147,2]
[338465701,1726665041231,-600.0,0.000147,5]
[338465702,1726665041241,-2867.41142028,0.00014722,2]
[338465703,1726665041250,-158.8066396,0.00014729,2]
[338465704,1726665041259,-880.0,0.00014736,2]
[338465705,1726665041269,-2867.41142028,0.00014767,2]
[338465706,1726665041279,-204.63828779,0.0001478,2]
[338465707,1726665041288,-150.0,0.0001478,2]
[338465708,1726665041298,-11823.3609066,0.0001478,2]
[338465709,1726665041308,-158.8066396,0.00014786,2]
[338465710,1726665041317,-5052.178,0.00014788,2]
[338465711,1726665041327,-503.48096723,0.0001479,20]
[338465712,1726665041336,-1369.1094223,0.00014794,2]
[338465713,1726665041346,-1000.0,0.000148,4]
[338465714,1726665041355,-5000.0,0.000148,2]
[338465715,1726665041365,-7655.0,0.000148,2]
[338465716,1726665041375,-3000.0,0.000148,2]
[338465717,1726665041707,-170.41107061,0.000148,2]
[338465718,1726665041719,-161.61428303,0.000148,2]
[338465719,1726665041729,-1268.0,0.000148,5]
[338465720,1726665041739,-2867.41142028,0.00014811,2]
[338465721,1726665041749,-152.0,0.00014818,5]
[338465722,1726665041759,-11823.3609066,0.00014824,2]
[338465723,1726665041770,-161.61428303,0.00014833,2]
[338465724,1726665041779,-1741.85233528,0.00014834,2]
[338465725,1726665041789,-158.8066396,0.00014843,2]
[338465726,1726665041799,-166.73121049,0.00014849,2]
[338465727,1726665041808,-170.41107061,0.0001485,2]
[338465728,1726665041817,-2867.41142028,0.00014856,2]
[338465729,1726665041827,-161.61428303,0.00014867,2]
[338465730,1726665041837,-11823.3609066,0.0001487,2]
[338465731,1726665041847,-8500.0,0.00014874,2]
[338465732,1726665041857,-11823.3609066,0.0001488,2]
[338465733,1726665041867,-11823.3609066,0.00014881,2]
[338465734,1726665041876,-8500.0,0.00014882,2]
[338465735,1726665041887,-201.415864,0.00014883,2]
[338465736,1726665041896,-201.415864,0.00014883,2]
[338465737,1726665041906,-151.0,0.00014883,2]
[338465738,1726665041915,-192.0686,0.00014886,2]
[338465739,1726665041925,-151.0,0.0001489,2]
[338465740,1726665041934,-70940.1654397,0.0001489,2]
[338465741,1726665041944,-8500.0,0.00014891,2]
[338465742,1726665041955,-22725.83215283,0.00014899,2]
[338465743,1726665041964,-500.0,0.000149,2]
[338465744,1726665041975,-457.1,0.000149,7]
[338465745,1726665041984,-5877.62700156,0.000149,2]
[338465746,1726665041994,-5800.0,0.000149,2]
[338465747,1726665042003,-8500.0,0.000149,2]
[338465748,1726665042012,-8500.0,0.000149,2]
[338465749,1726665042021,-35000.0,0.000149,2]
[338465750,1726665042030,-5800.0,0.000149,2]
[338465751,1726665042042,-1149.56194701,0.000149,2]
[338465752,1726665042051,-201.415864,0.000149,2]
[338465753,1726665042061,-201.415864,0.000149,2]
[338465754,1726665042070,-151.0,0.000149,2]
[338465755,1726665042079,-29192.24209987,0.000149,2]
[338465756,1726665042089,-151.0,0.000149,2]
[338465757,1726665042098,-195.12419715,0.000149,2]
[338465758,1726665042107,-4084.67140495,0.000149,2]
[338465759,1726665042116,-2867.41142028,0.000149,2]